fUST/lending_fUST_20240318
["ID","MTS","AMOUNT","RATE_DAILY","PERIOD"]
[319354131,1710693064406,-500.0,0.00020809,2]
[319354132,1710693064421,-500.0,0.00020809,2]
[319354133,1710693064435,-500.0,0.00020809,2]
[319354134,1710693064450,-291.44178914,0.00020809,2]
[319354135,1710693064537,-500.0,0.00020809,2]
[319354136,1710693064546,-500.0,0.00020809,2]
[319354137,1710693064556,-500.0,0.00020809,2]
[319354138,1710693064566,-500.0,0.00020809,2]
[319354139,1710693064575,-500.0,0.00020809,2]
[319354140,1710693064585,-500.0,0.00020809,2]
[319354141,1710693064595,-500.0,0.00020809,2]
[319354142,1710693064604,-500.0,0.00020809,2]
[319354143,1710693064613,-500.0,0.00020809,2]
[319354144,1710693064623,-500.0,0.00020809,2]
[319354145,1710693064632,-500.0,0.00020809,2]
[319354146,1710693064642,-500.0,0.00020809,2]
[319354147,1710693064651,-500.0,0.00020809,2]
[319354148,1710693064661,-500.0,0.00020809,2]
[319354149,1710693064670,-500.0,0.00020809,2]
[319354150,1710693064680,-500.0,0.00020809,2]
[319354151,1710693064689,-500.0,0.00020809,2]
[319354152,1710693064698,-500.0,0.00020809,2]
[319354153,1710693064708,-500.0,0.00020809,2]
[319354154,1710693064717,-500.0,0.00020809,2]
[319354155,1710693064726,-500.0,0.00020809,2]
[319354156,1710693064736,-305.43246047,0.00020809,2]
[319354157,1710693064749,-500.0,0.00020809,2]
[319354158,1710693064759,-500.0,0.00020809,2]
[319354159,1710693064768,-500.0,0.00020809,2]
[319354160,1710693064778,-500.0,0.00020809,2]
[319354161,1710693064787,-281.04534946,0.00020809,2]
[319354162,1710693064796,-1645.62,0.00020809,2]
[319354163,1710693064806,-1645.62,0.00020809,2]
[319354164,1710693064815,-1645.62,0.00020809,2]
[319354165,1710693064824,-1645.62,0.00020809,2]
[319354166,1710693064834,-1645.62,0.00020809,2]
[319354167,1710693064843,-1645.62,0.00020809,2]
[319354168,1710693064853,-1645.62,0.00020809,2]
[319354169,1710693064862,-1645.62,0.00020809,2]
[319354170,1710693064871,-1645.62,0.00020809,2]
[319354171,1710693064881,-1645.62,0.00020809,2]
[319354172,1710693064891,-1645.62,0.00020809,2]
[319354173,1710693064901,-1645.62,0.00020809,2]
[319354174,1710693064911,-1645.62,0.00020809,2]
[319354175,1710693064920,-1645.62,0.00020809,2]
[319354176,1710693064932,-1645.62,0.00020809,2]
[319354177,1710693064941,-1645.62,0.00020809,2]
[319354178,1710693064950,-1645.62,0.00020809,2]
[319354179,1710693064959,-1645.62,0.00020809,2]
[319354180,1710693064969,-1645.62,0.00020809,2]
[319354181,1710693064979,-1645.73829096,0.00020809,2]
[319354182,1710693064989,-500.0,0.00020809,2]
[319354183,1710693065001,-500.0,0.00020809,2]
[319354184,1710693065011,-309.64351516,0.00020809,2]
[319354185,1710693065022,-500.0,0.00020809,2]
[319354186,1710693065032,-500.0,0.00020809,2]
[319354187,1710693065042,-500.0,0.00020809,2]
[319354188,1710693065052,-500.0,0.00020809,2]
[319354189,1710693065064,-500.0,0.00020809,2]
[319354190,1710693065075,-500.0,0.00020809,2]
[319354191,1710693065086,-167.80494475,0.00020809,2]
[319354192,1710693065096,-500.0,0.00020809,2]
[319354193,1710693065107,-500.0,0.00020809,2]
[319354194,1710693065117,-500.0,0.00020809,2]
[319354195,1710693065127,-206.20700744,0.00020809,2]
[319354196,1710693065137,-500.0,0.00020809,2]
[319354197,1710693065147,-500.0,0.00020809,2]
[319354198,1710693065158,-500.0,0.00020809,2]
[319354199,1710693065168,-500.0,0.00020809,2]
[319354200,1710693065179,-225.70497248,0.00020809,2]
[319354201,1710693065189,-432.17565679,0.00020809,2]
[319354202,1710693065199,-500.0,0.00020809,2]
[319354203,1710693065209,-267.93350243,0.00020809,2]
[319354204,1710693065220,-500.0,0.00020809,2]
[319354205,1710693065231,-500.0,0.00020809,2]
[319354206,1710693065244,-500.0,0.00020809,2]
[319354207,1710693065255,-500.0,0.00020809,2]
[319354208,1710693065266,-500.0,0.00020809,2]
[319354209,1710693065276,-298.97120451,0.00020809,2]
[319354210,1710693065287,-500.0,0.00020809,2]
[319354211,1710693065298,-500.0,0.00020809,2]
[319354212,1710693065308,-500.0,0.00020809,2]
[319354213,1710693065319,-189.75519644,0.00020809,2]
[319354214,1710693065328,-603.94,0.00020809,2]
[319354215,1710693065338,-603.94,0.00020809,2]
[319354216,1710693065347,-603.94,0.00020809,2]
[319354217,1710693065359,-603.94,0.00020809,2]
[319354218,1710693065368,-603.94,0.00020809,2]
[319354219,1710693065378,-603.94,0.00020809,2]
[319354220,1710693065387,-603.94,0.00020809,2]
[319354221,1710693065398,-603.94,0.00020809,2]
[319354222,1710693065407,-603.94,0.00020809,2]
[319354223,1710693065417,-603.94,0.00020809,2]
[319354224,1710693065426,-603.94,0.00020809,2]
[319354225,1710693065436,-603.94,0.00020809,2]
[319354226,1710693065446,-603.94,0.00020809,2]
[319354227,1710693065456,-603.94,0.00020809,2]
[319354228,1710693065466,-603.94,0.00020809,2]
[319354229,1710693065476,-603.94,0.00020809,2]
[319354230,1710693065486,-603.94,0.00020809,2]
[319354231,1710693065498,-603.94,0.00020809,2]
[319354232,1710693065507,-603.94,0.00020809,2]
[319354233,1710693065517,-604.12477909,0.00020809,2]
[319354234,1710693065527,-535.37849367,0.00020809,2]
[319354235,1710693065537,-500.0,0.00020809,2]
[319354236,1710693065546,-500.0,0.00020809,2]
[319354237,1710693065556,-500.0,0.00020809,2]
[319354238,1710693065566,-500.96757386,0.00020809,2]
[319354239,1710693065575,-500.0,0.00020809,2]
[319354240,1710693065584,-500.0,0.00020809,2]
[319354241,1710693065594,-500.0,0.00020809,2]
[319354242,1710693065604,-500.0,0.00020809,2]
[319354243,1710693065670,-500.0,0.00020809,2]
[319354244,1710693065681,-500.0,0.00020809,2]
[319354245,1710693065691,-291.83297353,0.00020809,2]
[319354246,1710693065702,-500.0,0.00020809,2]
[319354247,1710693065712,-212.65287427,0.00020809,2]
[319354248,1710693065722,-1157.5,0.00020809,2]
[319354249,1710693065732,-1157.5,0.00020809,2]
[319354250,1710693065743,-1157.5,0.00020809,2]
[319354251,1710693065753,-1157.5,0.00020809,2]
[319354252,1710693065762,-1157.5,0.00020809,2]
[319354253,1710693065772,-1157.5,0.00020809,2]
[319354254,1710693065782,-1157.5,0.00020809,2]
[319354255,1710693065791,-1157.5,0.00020809,2]
[319354256,1710693065801,-1157.5,0.00020809,2]
[319354257,1710693065810,-1157.5,0.00020809,2]
[319354258,1710693065820,-1157.5,0.00020809,2]
[319354259,1710693065829,-1157.5,0.00020809,2]
[319354260,1710693065839,-1157.5,0.00020809,2]
[319354261,1710693065848,-1157.5,0.00020809,2]
[319354262,1710693065857,-1157.5,0.00020809,2]
[319354263,1710693065867,-1157.5,0.00020809,2]
[319354264,1710693065877,-1157.5,0.00020809,2]
[319354265,1710693065886,-1157.5,0.00020809,2]
[319354266,1710693065895,-1157.5,0.00020809,2]
[319354267,1710693065905,-1157.60635816,0.00020809,2]
[319354268,1710693065916,-155.15599764,0.00020831,2]
[319354269,1710693065927,-243.58567302,0.00020831,2]
[319354270,1710693065937,-321.23265616,0.00020832,2]
[319354271,1710693065947,-2342.024919,0.00020833,2]
[319354272,1710693065957,-2342.024919,0.00020833,2]
[319354273,1710693065966,-2342.024919,0.00020833,2]
[319354274,1710693065976,-2342.024919,0.00020833,2]
[319354275,1710693065986,-2342.024919,0.00020833,2]
[319354276,1710693065998,-2342.024919,0.00020833,2]
[319354277,1710693066009,-2342.024919,0.00020833,2]
[319354278,1710693066019,-2342.024919,0.00020833,2]
[319354279,1710693066029,-2342.024919,0.00020833,2]
[319354280,1710693066039,-2342.024919,0.00020833,2]
[319354281,1710693066050,-2342.024919,0.00020833,2]
[319354282,1710693066060,-2342.024919,0.00020833,2]
[319354283,1710693066071,-2342.024919,0.00020833,2]
[319354284,1710693066082,-2342.024919,0.00020833,2]
[319354285,1710693066092,-2342.024919,0.00020833,2]
[319354286,1710693066102,-2342.024919,0.00020833,2]
[319354287,1710693066112,-2342.024919,0.00020833,2]
[319354288,1710693066122,-2342.024919,0.00020833,2]
[319354289,1710693066132,-2342.024919,0.00020833,2]
[319354290,1710693066142,-2342.024915,0.00020833,2]
[319354291,1710693066152,-378.239923,0.00020833,2]
[319354292,1710693066162,-378.239923,0.00020833,2]
[319354293,1710693066172,-378.239923,0.00020833,2]
[319354294,1710693066181,-378.239923,0.00020833,2]
[319354295,1710693066191,-378.239923,0.00020833,2]
[319354296,1710693066202,-378.239923,0.00020833,2]
[319354297,1710693066212,-378.239923,0.00020833,2]
[319354298,1710693066221,-378.239923,0.00020833,2]
[319354299,1710693066231,-378.239923,0.00020833,2]
[319354300,1710693066241,-378.239923,0.00020833,2]
[319354301,1710693066254,-378.239923,0.00020833,2]
[319354302,1710693066263,-378.239923,0.00020833,2]
[319354303,1710693066273,-378.239923,0.00020833,2]
[319354304,1710693066283,-378.239923,0.00020833,2]
[319354305,1710693066293,-378.239923,0.00020833,2]
[319354306,1710693066306,-378.239923,0.00020833,2]
[319354307,1710693066316,-378.239923,0.00020833,2]
[319354308,1710693066325,-378.239923,0.00020833,2]
[319354309,1710693066334,-378.239923,0.00020833,2]
[319354310,1710693066346,-378.239915,0.00020833,2]
[319354311,1710693066355,-16921.87678597,0.00020855,3]
[319354312,1710693066366,-151.0,0.00020902,2]
[319354313,1710693066376,-151.0,0.00020902,2]
[319354314,1710693066386,-151.0,0.00020902,2]
[319354315,1710693066397,-151.0,0.00020902,2]
[319354316,1710693066407,-151.0,0.00020902,2]
[319354317,1710693066416,-151.0,0.00020902,2]
[319354318,1710693066426,-151.0,0.00020902,2]
[319354319,1710693066436,-151.0,0.00020902,2]
[319354320,1710693066445,-151.0,0.00020902,2]
[319354321,1710693066455,-151.0,0.00020902,2]
[319354322,1710693066465,-151.0,0.00020902,2]
[319354323,1710693066474,-151.0,0.00020902,2]
[319354324,1710693066484,-151.0,0.00020902,2]
[319354325,1710693066494,-151.0,0.00020902,2]
[319354326,1710693066503,-151.0,0.00020902,2]
[319354327,1710693066513,-151.0,0.00020902,2]
[319354328,1710693066522,-151.0,0.00020902,2]
[319354329,1710693066531,-151.0,0.00020902,2]
[319354330,1710693066541,-244.730121,0.00020902,2]
[319354331,1710693066551,-3893888.37077999,0.00020902,60]
[319354332,1710693066560,-335205.03877694,0.00020902,60]
[319354333,1710693066570,-116511.30334584,0.00020902,60]
[319354334,1710693066579,-5004423.36896216,0.00020902,60]
[319354335,1710693066719,-2199695.50317213,0.00020902,60]
[319354336,1710693066731,-500000.0,0.00020902,60]
[319355016,1710694238080,-269.42483516,0.00017261,2]
[319355018,1710694238089,-746.57804742,0.00017262,2]
[319355020,1710694238098,-746.57804742,0.00017265,2]
[319355022,1710694238107,-247.157017,0.00017942,2]
[319355024,1710694238116,-1036.0589691,0.00017955,2]
[319355026,1710694238125,-325.52774236,0.00018355,2]
[319355027,1710694238134,-500.0,0.00018356,2]
[319355029,1710694238143,-500.0,0.00018356,2]
[319355031,1710694238153,-500.0,0.00018356,2]
[319355034,1710694238163,-500.0,0.00018356,2]
[319355035,1710694238172,-500.0,0.00018356,2]
[319355037,1710694238183,-500.0,0.00018356,2]
[319355039,1710694238192,-500.0,0.00018356,2]
[319355041,1710694238201,-605.89057958,0.00018356,2]
[319355043,1710694238212,-500.0,0.00018356,2]
[319355045,1710694238220,-500.0,0.00018356,2]
[319355047,1710694238229,-502.1562583,0.00018356,2]
[319355049,1710694238238,-500.0,0.00018356,2]
[319355051,1710694238247,-500.0,0.00018356,2]
[319355053,1710694238257,-500.0,0.00018356,2]
[319355055,1710694238265,-500.0,0.00018356,2]
[319355057,1710694238274,-500.0,0.00018356,2]
[319355059,1710694238283,-500.0,0.00018356,2]
[319355061,1710694238292,-500.0,0.00018356,2]
[319355063,1710694238301,-500.0,0.00018356,2]
[319355065,1710694238310,-224.75057144,0.00018356,2]
[319355067,1710694238319,-165.688499,0.00018517,2]
[319355069,1710694238328,-281.137594,0.00018517,2]
[319355071,1710694238337,-277.224393,0.00018517,2]
[319355073,1710694238347,-500.0,0.00018699,2]
[319355075,1710694238356,-281.137594,0.00018748,2]
[319355077,1710694238365,-277.224393,0.00018748,2]
[319355079,1710694238375,-7281.58934018,0.000189,2]
[319355081,1710694238384,-281.137594,0.0001898,2]
[319355083,1710694238393,-277.224393,0.0001898,2]
[319355085,1710694238403,-99.75937276,0.00019123,2]
[319356046,1710694246841,-1316.74874859,0.00018932,2]
[319356048,1710694246851,-400.24062724,0.00019123,2]
[319356049,1710694246861,-500.0,0.00019123,2]
[319356051,1710694246870,-500.0,0.00019123,2]
[319356053,1710694246879,-579.44824567,0.00019123,2]
[319356055,1710694246888,-293.215294,0.00019178,2]
[319356057,1710694246899,-166.666666,0.00019178,2]
[319356058,1710694246910,-281.137594,0.00019211,2]
[319356059,1710694246920,-277.224393,0.00019211,2]
[319356060,1710694246930,-281.137594,0.00019443,2]
[319356061,1710694246943,-277.224393,0.00019443,2]
[319356062,1710694246953,-236.41458362,0.000195,2]
[319356063,1710694246963,-166.666666,0.00019627,2]
[319356064,1710694246974,-7952.92016184,0.0001989,2]
[319356066,1710694246985,-500.0,0.00019997,2]
[319356069,1710694246996,-500.0,0.00019997,2]
[319356071,1710694247006,-1573.14364873,0.0002,2]
[319356074,1710694247016,-458.90559464,0.0002,2]
[319356076,1710694247026,-154.95351395,0.0002,2]
[319356078,1710694247037,-528.32734063,0.0002,2]
[319356080,1710694247047,-154.95351395,0.0002,2]
[319356082,1710694247056,-400.0,0.00020044,2]
[319356084,1710694247066,-154.95351395,0.00020045,2]
[319356085,1710694247076,-201.24811789,0.00020045,2]
[319356086,1710694247087,-166.666666,0.00020076,2]
[319356088,1710694247096,-500.0,0.00020171,2]
[319356089,1710694247106,-500.0,0.00020171,2]
[319356091,1710694247116,-500.0,0.00020171,2]
[319356093,1710694247127,-500.0,0.00020171,2]
[319356095,1710694247137,-365.03551066,0.00020171,2]
[319356097,1710694247147,-1042.74340735,0.00020482,2]
[319356099,1710694247157,-166.666666,0.00020524,2]
[319356101,1710694247167,-1000.0,0.00020792,2]
[319356104,1710694247177,-500.0,0.00020809,2]
[319356106,1710694247189,-593.30394245,0.00020809,2]
[319356107,1710694247199,-500.0,0.00020867,2]
[319356109,1710694247209,-518.98456079,0.00020891,2]
[319356111,1710694247218,-500.0,0.00020891,2]
[319356113,1710694247227,-500.0,0.00020891,2]
[319356116,1710694247238,-500.0,0.00020891,2]
[319356118,1710694247249,-432.53063174,0.00020891,2]
[319356120,1710694247259,-500.0,0.00020891,2]
[319356130,1710694247339,-500.0,0.00020891,2]
[319356133,1710694247371,-594.17817039,0.00020891,2]
[319356135,1710694247380,-500.0,0.00020891,2]
[319356137,1710694247390,-500.0,0.00020891,2]
[319356139,1710694247400,-336.76639542,0.00020891,2]
[319356141,1710694247409,-164.79336561,0.00020891,2]
[319356143,1710694247418,-500.0,0.00020891,2]
[319356145,1710694247427,-500.0,0.00020891,2]
[319356147,1710694247437,-500.0,0.00020891,2]
[319356149,1710694247446,-151.0,0.00020891,2]
[319356151,1710694247456,-151.0,0.00020891,2]
[319356152,1710694247465,-151.0,0.00020891,2]
[319356154,1710694247475,-151.0,0.00020891,2]
[319356156,1710694247485,-151.0,0.00020891,2]
[319356159,1710694247496,-151.0,0.00020891,2]
[319356161,1710694247507,-151.0,0.00020891,2]
[319356163,1710694247517,-151.0,0.00020891,2]
[319356165,1710694247527,-151.0,0.00020891,2]
[319356167,1710694247536,-151.0,0.00020891,2]
[319356169,1710694247546,-224.47928165,0.00020891,2]
[319356171,1710694247555,-4467028.32119124,0.00020892,60]
[319356173,1710694247568,-22159.26144162,0.00020892,60]
[319356175,1710694247580,-19300.0,0.00020892,60]
[319356177,1710694247593,-33608.55300634,0.00020892,60]
[319356180,1710694247608,-1521.59548316,0.00020892,60]
[319356925,1710694349542,1000.0,0.00025,120]
[319356926,1710694354686,1000.0,0.00024,120]
[319356927,1710694366112,1000.0,0.00023,99]
[319356928,1710694378518,1000.0,0.00022,120]
[319356933,1710695232164,400.10845479,0.00025,120]
[319356935,1710695374616,322.82432661,0.00015877,2]
[319356936,1710695381017,1000.0,0.00025,120]
[319356968,1710695432189,-3224.86444071,0.00016033,2]
[319356969,1710695432199,-616.65952365,0.00016034,2]
[319356970,1710695432209,-15274.07792486,0.00016035,2]
[319356971,1710695432219,-1660.51203761,0.00016037,2]
[319356972,1710695432230,-2007.5484923,0.00017,2]
[319356973,1710695432241,-1947.72335117,0.000176,2]
[319356974,1710695432250,-7359.38575588,0.00018,2]
[319356975,1710695432260,-43464.73457697,0.00019,2]
[319356976,1710695432270,-852.0,0.00019,2]
[319356977,1710695432280,-160.859042,0.00019178,2]
[319356978,1710695432291,-166.666666,0.00019178,2]
[319356979,1710695432301,-278.554529,0.00019178,2]
[319356980,1710695432311,-236.41458362,0.00019626,2]
[319356981,1710695432320,-166.666666,0.00019627,2]
[319356982,1710695432329,-7952.92016184,0.0001989,2]
[319356983,1710695432338,-852.0,0.0002,2]
[319356984,1710695432347,-154.9690062,0.0002,2]
[319356985,1710695432357,-239.08981481,0.0002,2]
[319356986,1710695432367,-1310.95304061,0.0002,2]
[319356987,1710695432376,-201.24811789,0.0002,2]
[319356988,1710695432388,-400.0,0.0002,2]
[319356989,1710695432399,-528.32734063,0.00020038,2]
[319356990,1710695432409,-154.9690062,0.00020038,2]
[319356991,1710695432419,-166.666666,0.00020076,2]
[319356992,1710695432429,-166.666666,0.00020524,2]
[319356993,1710695432438,-39580.02982489,0.00020792,2]
[319356994,1710695432448,-155.0341075,0.00020869,2]
[319356995,1710695432458,-154.98450155,0.00020889,2]
[319356996,1710695432468,-154.98450155,0.00020889,2]
[319356997,1710695432478,-247.58450778,0.0002089,2]
[319356998,1710695432488,-386.44066496,0.0002089,2]
[319356999,1710695432497,-195.86955008,0.0002089,2]
[319357000,1710695432507,-414.44579862,0.0002089,2]
[319357001,1710695432517,-204.92613972,0.0002089,2]
[319357002,1710695432527,-212.15239579,0.0002089,2]
[319357003,1710695432536,-155.36523752,0.0002089,2]
[319357004,1710695432547,-155.0341075,0.0002089,2]
[319357005,1710695432556,-215.2932749,0.0002089,2]
[319357006,1710695432567,-242.72723996,0.0002089,2]
[319357007,1710695432576,-180.33601937,0.0002089,2]
[319357008,1710695432587,-207.84440496,0.0002089,2]
[319357009,1710695432596,-155.24805706,0.0002089,2]
[319357010,1710695432606,-155.58652772,0.0002089,2]
[319357011,1710695432616,-596.50052206,0.0002089,2]
[319357012,1710695432625,-429.45007321,0.0002089,2]
[319357013,1710695432634,-187.37817515,0.0002089,2]
[319357014,1710695432644,-259.6407106,0.0002089,2]
[319357015,1710695432654,-413.95282472,0.0002089,2]
[319357016,1710695432663,-500.0,0.0002089,2]
[319357017,1710695432673,-472.89596844,0.0002089,2]
[319357018,1710695432682,-500.0,0.0002089,2]
[319357019,1710695432692,-500.0,0.0002089,2]
[319357020,1710695432701,-338.43475469,0.00020891,2]
[319357021,1710695432711,-298.92260715,0.00020891,2]
[319357022,1710695432720,-2719.01,0.00020891,2]
[319357023,1710695432729,-2719.01,0.00020891,2]
[319357024,1710695432739,-2719.01,0.00020891,2]
[319357025,1710695432749,-2719.01,0.00020891,2]
[319357026,1710695432758,-2719.01,0.00020891,2]
[319357027,1710695432767,-2719.01,0.00020891,2]
[319357028,1710695432777,-2719.01,0.00020891,2]
[319357029,1710695432787,-2719.01,0.00020891,2]
[319357030,1710695432795,-2719.01,0.00020891,2]
[319357031,1710695432805,-2719.01,0.00020891,2]
[319357032,1710695432815,-2719.01,0.00020891,2]
[319357033,1710695432825,-2719.01,0.00020891,2]
[319357034,1710695432834,-2719.01,0.00020891,2]
[319357035,1710695432844,-2719.01,0.00020891,2]
[319357036,1710695432853,-2719.01,0.00020891,2]
[319357037,1710695432863,-2719.01,0.00020891,2]
[319357038,1710695432874,-2719.01,0.00020891,2]
[319357039,1710695432884,-2719.01,0.00020891,2]
[319357040,1710695432894,-2719.01,0.00020891,2]
[319357041,1710695432905,-2719.01,0.00020891,2]
[319357042,1710695432915,-2719.01,0.00020891,2]
[319357043,1710695432926,-2719.01,0.00020891,2]
[319357044,1710695432938,-2719.01,0.00020891,2]
[319357045,1710695432948,-2719.17324472,0.00020891,2]
[319357046,1710695432960,-569.92781534,0.00020891,2]
[319357047,1710695432971,-501.56227686,0.00020891,2]
[319357048,1710695432985,-2201.37,0.00020891,2]
[319357049,1710695432996,-2201.37,0.00020891,2]
[319357050,1710695433006,-2201.37,0.00020891,2]
[319357051,1710695433019,-2201.37,0.00020891,2]
[319357052,1710695433030,-2201.37,0.00020891,2]
[319357053,1710695433040,-2201.37,0.00020891,2]
[319357054,1710695433051,-2201.37,0.00020891,2]
[319357055,1710695433060,-500.0,0.00020891,2]
[319357056,1710695433071,-2201.37,0.00020891,2]
[319357057,1710695433081,-500.0,0.00020891,2]
[319357058,1710695433091,-2201.37,0.00020891,2]
[319357059,1710695433101,-511.53716873,0.00020891,2]
[319357060,1710695433111,-2201.37,0.00020891,2]
[319357061,1710695433120,-2201.37,0.00020891,2]
[319357062,1710695433130,-2201.37,0.00020891,2]
[319357063,1710695433144,-2201.37,0.00020891,2]
[319357064,1710695433156,-2201.37,0.00020891,2]
[319357065,1710695433166,-2201.37,0.00020891,2]
[319357066,1710695433176,-2201.37,0.00020891,2]
[319357067,1710695433185,-2201.37,0.00020891,2]
[319357068,1710695433195,-2201.37,0.00020891,2]
[319357069,1710695433205,-2201.37,0.00020891,2]
[319357070,1710695433215,-2201.37,0.00020891,2]
[319357071,1710695433226,-2201.37,0.00020891,2]
[319357072,1710695433236,-2201.37,0.00020891,2]
[319357073,1710695433246,-2201.37,0.00020891,2]
[319357074,1710695433256,-2201.48858306,0.00020891,2]
[319357075,1710695433266,-500.0,0.00020891,2]
[319357076,1710695433277,-500.0,0.00020891,2]
[319357077,1710695433287,-500.0,0.00020891,2]
[319357078,1710695433297,-500.0,0.00020891,2]
[319357079,1710695433307,-500.0,0.00020891,2]
[319357080,1710695433317,-500.0,0.00020891,2]
[319357081,1710695433328,-335.32578266,0.00020891,2]
[319357082,1710695433338,-500.0,0.00020891,2]
[319357083,1710695433349,-500.0,0.00020891,2]
[319357084,1710695433358,-500.0,0.00020891,2]
[319357085,1710695433369,-500.0,0.00020891,2]
[319357086,1710695433378,-500.0,0.00020891,2]
[319357087,1710695433390,-544.82151806,0.00020891,2]
[319357088,1710695433400,-500.0,0.00020891,2]
[319357089,1710695433409,-261.95,0.00020891,2]
[319357090,1710695433418,-500.0,0.00020891,2]
[319357091,1710695433436,-500.0,0.00020891,2]
[319357092,1710695433448,-500.0,0.00020891,2]
[319357093,1710695433457,-500.0,0.00020891,2]
[319357094,1710695433467,-500.0,0.00020891,2]
[319357095,1710695433476,-500.0,0.00020891,2]
[319357096,1710695433486,-500.0,0.00020891,2]
[319357097,1710695433495,-500.0,0.00020891,2]
[319357098,1710695433504,-178.1436422,0.00020891,2]
[319357099,1710695433514,-500.0,0.00020891,2]
[319357100,1710695433524,-500.0,0.00020891,2]
[319357101,1710695433533,-500.0,0.00020891,2]
[319357102,1710695433543,-500.0,0.00020891,2]
[319357103,1710695433552,-500.0,0.00020891,2]
[319357104,1710695433560,-500.0,0.00020891,2]
[319357105,1710695433569,-500.0,0.00020891,2]
[319357106,1710695433578,-500.0,0.00020891,2]
[319357107,1710695433587,-500.0,0.00020891,2]
[319357108,1710695433597,-500.0,0.00020891,2]
[319357109,1710695433606,-500.0,0.00020891,2]
[319357110,1710695433615,-500.0,0.00020891,2]
[319357111,1710695433624,-500.0,0.00020891,2]
[319357112,1710695433636,-500.0,0.00020891,2]
[319357113,1710695433645,-477.7172666,0.00020891,2]
[319357114,1710695433654,-500.0,0.00020891,2]
[319357115,1710695433663,-500.0,0.00020891,2]
[319357116,1710695433672,-500.0,0.00020891,2]
[319357117,1710695433681,-500.0,0.00020891,2]
[319357118,1710695433689,-500.0,0.00020891,2]
[319357119,1710695433698,-500.0,0.00020891,2]
[319357120,1710695433707,-500.0,0.00020891,2]
[319357121,1710695433717,-500.0,0.00020891,2]
[319357122,1710695433726,-500.0,0.00020891,2]
[319357123,1710695433735,-500.0,0.00020891,2]
[319357124,1710695433744,-500.0,0.00020891,2]
[319357125,1710695433753,-500.0,0.00020891,2]
[319357126,1710695433762,-500.0,0.00020891,2]
[319357127,1710695433771,-500.0,0.00020891,2]
[319357128,1710695433781,-500.0,0.00020891,2]
[319357129,1710695433789,-500.0,0.00020891,2]
[319357130,1710695433798,-500.0,0.00020891,2]
[319357131,1710695433807,-501.11761868,0.00020891,2]
[319357132,1710695433937,-500.0,0.00020891,2]
[319357133,1710695433947,-6949.48,0.00020891,2]
[319357134,1710695433956,-6949.48,0.00020891,2]
[319357135,1710695433965,-500.0,0.00020891,2]
[319357136,1710695433974,-5563.53422394,0.00020891,2]
[319357409,1710695443181,-1385.94577606,0.00020891,2]
[319357411,1710695443191,-500.0,0.00020891,2]
[319357413,1710695443200,-2172.18592744,0.00020891,2]
[319357415,1710695443211,-600.41547278,0.00020891,2]
[319357418,1710695443223,-3982.68856426,0.00020891,2]
[319357420,1710695443235,-194.19003552,0.00020891,2]
[319357422,1710695443245,-500.0,0.00020891,2]
[319357424,1710695443254,-6949.48,0.00020891,2]
[319357426,1710695443263,-500.0,0.00020891,2]
[319357428,1710695443271,-6949.48,0.00020891,2]
[319357430,1710695443280,-500.0,0.00020891,2]
[319357432,1710695443289,-3646.84996448,0.00020891,2]
[319358717,1710696632286,-232.758089,0.00017794,2]
[319358718,1710696632297,-4854.39289345,0.000189,2]
[319358719,1710696632307,-441.366611,0.00019066,2]